bitfinex/quotes_ETHUSD_20241003
["timestamp","ask_amount","ask_price","bid_price","bid_amount"]
[1727948983650,9.09186369,2354.7,2354.2,4.24765]
[1727948983849,4.84490369,2354.7,2354.2,4.24765]
[1727948984080,4.247,2354.6,2354.2,4.24765]
[1727948984686,5.58644514,2354.8,2354.3,4.32934034]
[1727948984842,1.33978514,2355.0,2354.6,4.24695]
[1727948985041,1.33978514,2355.0,2354.6,0.424695]
[1727948985283,1.33978514,2355.1,2354.8,4.24656]
[1727948985500,1.33978514,2355.2,2354.8,4.24656]
[1727948985694,1.33978514,2355.2,2354.8,8.49309]
[1727948985847,4.24584,2355.3,2354.8,8.49308]
[1727948985848,5.58562514,2355.3,2354.8,8.49308]
[1727948986049,5.58562514,2355.3,2354.8,4.24653]
[1727948986294,9.83149514,2355.3,2354.8,4.24653]
[1727948986588,9.83146514,2355.3,2354.8,4.24653]
[1727948986774,8.49168,2355.3,2354.8,4.24653]
[1727948986971,9.83146514,2355.3,2354.8,4.24653]
[1727948987180,1.33978514,2355.4,2355.0,4.24616]
[1727948987357,4.24564,2355.4,2355.0,4.24616]
[1727948987783,5.58525514,2355.5,2355.1,4.24607]
[1727948987784,4.24547,2355.5,2355.1,4.24607]
[1727948987998,4.24547,2355.5,2355.0,4.24616]
[1727948988144,4.24547,2355.5,2355.0,8.49233]
[1727948988351,8.49094,2355.5,2355.0,4.24616]
[1727948988591,4.24564,2355.4,2355.0,4.24616]
[1727948988994,5.58525514,2355.5,2354.8,5.095829]
[1727948988995,4.24574,2355.3,2354.9,4.24642]
[1727948989848,4.24547,2355.5,2355.0,4.24626]
[1727948990052,4.24522,2355.6,2355.2,4.2459]
[1727948990364,4.24522,2355.6,2355.1,8.49196]
[1727948990694,4.24522,2355.6,2355.1,4.24595]
[1727948991048,4.24522,2355.6,2355.2,4.32273877]
[1727948991288,4.24522,2355.6,2355.2,4.24589]
[1727948991585,4.24522,2355.6,2355.2,4.31561905]
[1727948991748,4.24522,2355.6,2355.1,8.49195]
[1727948992181,4.24522,2355.6,2355.1,5.095135]
[1727948992393,4.24504,2355.7,2355.3,4.24562]
[1727948992549,1.33978514,2355.8,2355.3,4.24562]
[1727948992550,4.24485,2355.8,2355.3,4.24562]
[1727948992952,4.24485,2355.8,2354.8,3.0]
[1727948992953,6.06343983,2355.8,2355.2,4.24585]
[1727948993171,4.24485,2355.8,2355.3,4.24557]
[1727948993358,4.24502,2355.7,2355.2,8.49165]
[1727948994222,4.24502,2355.7,2355.2,4.2458]
[1727948994380,4.24502,2355.7,2355.2,8.49163]
[1727948996816,4.24502,2355.7,2355.2,4.2458]
[1727948996978,4.24502,2355.7,2355.3,4.24574]
[1727948997285,4.24502,2355.7,2354.8,3.0]
[1727948997286,4.24531,2355.6,2355.1,4.24601]
[1727948997473,4.24549,2355.5,2355.1,4.24601]
[1727948998112,4.24531,2355.6,2355.1,4.24601]
[1727948998317,4.24539,2355.5,2355.1,4.24601]
[1727949000356,4.24539,2355.5,2354.8,3.0]
[1727949000357,4.24559,2355.4,2354.9,4.24639]
[1727949000648,4.24576,2355.3,2354.9,4.24639]
[1727949001103,4.2456,2355.4,2355.0,4.24626]
[1727949001531,9.64431708,2355.5,2355.1,4.2461]
[1727949001757,5.48626927,2355.5,2355.1,4.2461]
[1727949002095,5.58500514,2355.6,2355.2,4.24581]
[1727949002349,6.56789065,2355.7,2355.2,4.24581]
[1727949002632,5.22810551,2355.7,2355.3,4.24568]
[1727949003201,5.22806551,2355.7,2355.2,4.24581]
[1727949003400,4.90199507,2355.6,2355.2,4.24581]
[1727949003634,4.24521,2355.6,2355.2,4.24581]
[1727949004446,4.24521,2355.6,2355.2,8.49166]
[1727949004598,5.58488514,2355.7,2355.2,4.24581]
[1727949005042,4.24529,2355.6,2355.2,4.24581]
[1727949005603,4.24529,2355.6,2355.2,8.49165]
[1727949006036,0.73659453,2355.6,2355.0,4.24613]
[1727949006256,1.33978514,2355.7,2355.0,4.2462]
[1727949006257,4.24558,2355.4,2355.0,4.2462]
[1727949006865,4.24617,2355.1,2354.6,4.24687]
[1727949007018,4.24617,2355.1,2354.7,4.24682]
[1727949007364,4.24617,2355.1,2354.6,8.4938]
[1727949007365,4.24634,2355.0,2354.6,8.4938]
[1727949007552,4.24617,2355.1,2354.7,4.24678]
[1727949008533,8.49238,2355.1,2354.7,4.24678]
[1727949008748,4.24617,2355.1,2354.7,4.24678]
[1727949009253,5.89825702,2355.1,2354.7,4.24678]
[1727949009973,1.65208702,2355.1,2354.7,4.24668]
[1727949010128,5.58572514,2355.2,2354.8,4.24662]
[1727949010329,1.78087013,2355.4,2354.8,4.24662]
[1727949010330,5.58556514,2355.3,2354.8,4.24648]
[1727949010574,1.33978514,2355.4,2355.1,4.24609]
[1727949010729,1.33978514,2355.5,2355.2,4.24584]
[1727949010935,6.02609013,2355.6,2355.2,4.24584]
[1727949010936,5.58500514,2355.6,2355.2,4.24584]
[1727949011133,7.49212409,2355.6,2355.2,4.24584]
[1727949011330,7.49212409,2355.6,2355.1,4.24609]
[1727949011564,4.24546,2355.5,2355.1,4.24609]
[1727949011770,4.2457,2355.4,2354.9,4.24638]
[1727949012068,5.21838567,2355.4,2354.9,4.24638]
[1727949012276,5.58516514,2355.5,2355.1,4.24602]
[1727949012928,1.33978514,2355.5,2355.1,4.24602]
[1727949013277,1.33978514,2355.9,2355.7,4.24502]
[1727949013577,6.91347401,2356.3,2355.8,4.24484]
[1727949013578,5.58392514,2356.2,2355.8,4.24484]
[1727949014274,5.58392514,2356.2,2355.6,4.24509]
[1727949014275,4.24433,2356.1,2355.6,4.24509]
[1727949014573,1.33978514,2356.3,2355.9,4.24454]
[1727949014877,1.33978514,2356.3,2355.7,4.32974413]
[1727949014878,4.24433,2356.1,2355.8,0.084888]
[1727949015043,4.24433,2356.1,2355.6,4.24504]
[1727949015246,5.58406514,2356.2,2355.6,4.24504]
[1727949015247,9.82819514,2356.2,2355.7,4.245]
[1727949015556,0.85957403,2356.1,2355.7,4.245]
[1727949015761,0.85957403,2356.1,2355.8,4.24469]
[1727949015940,4.24433,2356.1,2355.7,4.24501]
[1727949016270,4.24415,2356.2,2355.7,4.24501]
[1727949016469,4.24415,2356.2,2355.8,4.24479]
[1727949016858,9.77236103,2356.2,2355.8,4.24479]
[1727949017172,9.77236103,2356.2,2355.7,4.24494]
[1727949017173,4.2443,2356.1,2355.7,4.24494]
[1727949017395,4.2443,2356.1,2355.3,3.0]
[1727949017396,4.2445,2356.0,2355.3,3.0]
[1727949017563,4.2445,2356.0,2355.6,3.0]
[1727949017764,4.2445,2356.0,2355.6,7.24518]
[1727949019067,2.62373617,2356.2,2355.7,4.24493]
[1727949019274,4.24422,2356.2,2355.8,4.24475]
[1727949019573,5.81101172,2356.2,2355.8,4.24475]
[1727949019881,8.48843,2356.2,2355.8,4.24475]
[1727949020085,4.24414,2356.2,2355.8,4.24475]
[1727949020701,4.24432,2356.1,2355.7,4.24497]
[1727949020989,0.848846,2356.1,2355.8,4.24477]
[1727949021188,5.58372514,2356.3,2355.9,4.24457]
[1727949021189,5.58376514,2356.3,2355.9,4.24457]
[1727949021393,9.82756514,2356.4,2356.0,4.24448]
[1727949021555,5.40494353,2356.3,2355.8,4.24474]
[1727949021754,6.74472867,2356.3,2355.8,4.24474]
[1727949022086,4.24418,2356.2,2355.8,4.24474]
[1727949022288,5.92706507,2356.2,2355.8,4.28493732]
[1727949022497,4.24399,2356.3,2355.9,4.24465]
[1727949022698,4.24443,2356.1,2355.6,4.24507]
[1727949022914,4.24473,2355.9,2355.4,4.24547]
[1727949023069,8.48952,2355.9,2355.4,4.24547]
[1727949023407,0.848952,2355.8,2355.4,4.24547]
[1727949023730,4.24473,2355.9,2355.5,4.24533]
[1727949023914,4.24521,2355.6,2355.2,4.24587]
[1727949024198,4.24531,2355.6,2355.1,4.24593]
[1727949024398,4.24531,2355.6,2355.1,8.49192]
[1727949024566,5.094433,2355.5,2355.1,4.24593]
[1727949024766,4.24532,2355.6,2354.9,4.24629]
[1727949025068,4.24532,2355.6,2354.6,4.24682]
[1727949025069,8.49197,2355.2,2354.6,4.24682]
[1727949025268,4.24628,2355.0,2354.6,4.24682]
[1727949025696,4.24628,2355.0,2354.5,4.2471]
[1727949025998,4.24628,2355.0,2354.6,4.24692]
[1727949026301,4.24593,2355.2,2354.7,4.24682]
[1727949026483,1.14256572,2355.2,2354.7,4.24671]
[1727949026689,1.14256572,2355.2,2354.8,4.24652]
[1727949027158,4.24593,2355.2,2354.8,4.24652]
[1727949027771,4.24593,2355.2,2354.7,4.24671]
[1727949028105,4.2461,2355.1,2354.7,4.24671]
[1727949030205,4.24638,2355.0,2354.5,4.24702]
[1727949030364,4.24638,2355.0,2354.6,4.24699]
[1727949031384,4.24638,2355.0,2354.5,4.24702]
[1727949032433,4.24726,2354.5,2354.0,4.24797]
[1727949032588,4.24747,2354.4,2354.0,4.24797]
[1727949032793,4.24757,2354.3,2353.6,4.673545]
[1727949032994,4.05907194,2354.6,2353.9,4.24826]
[1727949032995,4.24746,2354.4,2353.9,4.24826]
[1727949033527,4.24746,2354.4,2354.0,4.24807]
[1727949034030,4.24739,2354.4,2353.9,8.49634]
[1727949034239,4.24739,2354.4,2354.0,4.24808]
[1727949034389,4.24739,2354.4,2353.9,4.24814]
[1727949034590,4.24719,2354.5,2354.1,4.24787]
[1727949034902,4.24719,2354.5,2354.1,0.424787]
[1727949035109,4.24719,2354.5,2354.0,4.24791]
[1727949036426,4.24719,2354.5,2354.1,4.24782]
[1727949037196,4.24719,2354.5,2354.0,4.24806]
[1727949037549,4.24719,2354.5,2354.0,8.49605]
[1727949037689,4.24719,2354.5,2354.0,5.097595]
[1727949037891,4.24743,2354.4,2354.0,4.24799]
[1727949038388,4.24783,2354.2,2353.8,4.24835]
[1727949038631,4.24755,2354.3,2353.9,4.24825]
[1727949038842,4.24755,2354.3,2353.8,4.24835]
[1727949039053,4.24774,2354.2,2353.8,4.32297901]
[1727949039221,4.24755,2354.3,2353.9,0.07462584]
[1727949039414,4.24755,2354.3,2353.9,4.32282584]
[1727949039619,4.24739,2354.4,2353.9,4.32282584]
[1727949039824,4.24732,2354.5,2354.0,4.24807]
[1727949040008,4.24732,2354.5,2353.9,4.2482]
[1727949040207,4.24739,2354.4,2353.9,4.2482]
[1727949040542,4.24782,2354.2,2353.7,8.49701]
[1727949040951,4.24782,2354.2,2353.7,4.24847]
[1727949041150,4.05907194,2354.4,2353.6,4.24877]
[1727949041151,4.24816,2354.0,2353.6,4.24877]
[1727949041444,4.24827,2353.9,2353.6,0.71451669]
[1727949041650,4.24852,2353.8,2353.3,7.24918]
[1727949041804,4.24852,2353.8,2353.4,4.24904]
[1727949042009,4.24869,2353.7,2352.9,4.24996]
[1727949042200,4.24894,2353.6,2353.1,4.24963]
[1727949042405,4.24894,2353.6,2353.1,5.099579]
[1727949042648,4.24894,2353.6,2353.1,4.24963]
[1727949042844,4.24903,2353.5,2353.0,4.24978]
[1727949043049,4.24903,2353.5,2353.1,4.24963]
[1727949043204,12.98111394,2353.8,2353.2,4.24942]
[1727949043406,4.24871,2353.7,2353.3,4.24927]
[1727949044108,4.24881,2353.6,2353.2,4.24952]
[1727949044649,4.2481,2354.0,2353.2,4.24952]
[1727949044650,4.24822,2354.0,2353.3,0.05931679]
[1727949044850,10.63471494,2354.2,2353.4,4.24909]
[1727949045157,10.63471494,2354.2,2352.8,3.0]
[1727949045158,4.2485,2353.8,2353.3,4.24927]
[1727949045479,4.2485,2353.8,2353.4,4.2491]
[1727949045749,8.49706,2353.8,2353.4,4.2491]
[1727949046135,4.2485,2353.8,2353.4,4.2491]
[1727949046305,4.2485,2353.8,2353.4,4.24904]
[1727949046511,4.2485,2353.8,2353.4,8.49812]
[1727949047562,4.2485,2353.8,2353.4,4.24904]
[1727949048816,4.24864,2353.7,2353.3,4.24933]
[1727949049113,4.2485,2353.8,2353.3,4.24933]
[1727949049314,4.2485,2353.8,2353.4,4.24908]
[1727949049825,8.49707,2353.8,2353.3,4.24933]
[1727949050630,4.2485,2353.8,2353.3,4.24933]
[1727949050825,4.2485,2353.8,2353.4,4.24916]
[1727949051029,4.24866,2353.7,2353.3,4.24928]
[1727949052427,4.24846,2353.8,2353.3,5.0991]
[1727949052846,4.2483,2353.9,2353.4,4.31463348]
[1727949053049,4.2483,2353.9,2353.5,4.24887]
[1727949054046,4.2483,2353.9,2353.4,4.24899]
[1727949054385,4.24862,2353.8,2353.3,4.2493]
[1727949054579,4.24862,2353.8,2353.4,4.24913]
[1727949054886,4.24824,2354.0,2353.5,4.24896]
[1727949054887,4.24834,2353.9,2353.5,4.24896]
[1727949055360,4.24834,2353.9,2353.5,5.098779]
[1727949055764,4.24834,2353.9,2353.5,0.849819]
[1727949056080,4.24834,2353.9,2353.3,4.24923]
[1727949056081,8.49743,2353.7,2353.3,4.24934]
[1727949056447,4.24851,2353.8,2353.3,4.30175107]
[1727949056648,4.24851,2353.8,2353.3,4.24934]
[1727949056860,4.24861,2353.8,2353.3,4.24934]
[1727949057155,4.24863,2353.7,2353.3,4.24934]
[1727949057371,1.06347149,2354.1,2352.8,7.05907194]
[1727949057372,4.24828,2353.9,2352.9,4.24996]
[1727949057690,4.24888,2353.6,2353.1,7.24955]
[1727949057859,4.249,2353.5,2353.1,7.24955]
[1727949058192,4.249,2353.5,2353.1,4.24969]
[1727949058193,4.24906,2353.5,2353.1,4.24969]
[1727949058392,4.24917,2353.4,2353.0,7.24976]
[1727949058693,4.24917,2353.4,2353.0,8.01938579]
[1727949058877,4.24874,2353.7,2353.1,4.24964]
[1727949059188,4.249,2353.5,2353.1,4.24964]
[1727949059397,4.249,2353.5,2353.0,4.24981]
[1727949059689,8.49813,2353.5,2353.0,4.24981]
[1727949060280,4.24882,2353.6,2353.2,4.24949]
[1727949060460,4.24836,2353.9,2353.4,4.24906]
[1727949060663,4.24846,2353.8,2353.4,4.24909]
[1727949060904,4.24836,2353.9,2353.5,4.24897]
[1727949061182,4.24845,2353.8,2353.3,4.24926]
[1727949061486,4.24875,2353.7,2353.3,4.24926]
[1727949061851,4.24834,2353.9,2353.5,4.24898]
[1727949062262,4.24846,2353.8,2353.4,4.24909]
[1727949063744,4.24872,2353.7,2353.3,4.2493]
[1727949064180,4.24885,2353.6,2353.0,4.24979]
[1727949064388,4.24924,2353.4,2352.8,4.25013]
[1727949064695,4.24924,2353.4,2352.9,4.24999]
[1727949064892,4.24924,2353.4,2352.9,8.49995]
[1727949065102,4.05907194,2353.2,2351.8,4.252]
[1727949065316,4.25014,2352.9,2352.5,4.25072]
[1727949065472,4.24989,2353.0,2352.6,4.25052]
[1727949065659,4.24989,2353.0,2352.5,8.50143]
[1727949066400,4.24989,2353.0,2352.6,4.25061]
[1727949066603,4.24975,2353.1,2352.6,4.25061]
[1727949066757,5.08061419,2353.1,2352.6,4.25061]
[1727949066958,0.83086419,2353.1,2352.7,4.25042]
[1727949067273,6.575643,2353.5,2353.1,4.2496]
[1727949067274,10.824643,2353.5,2353.1,4.2496]
[1727949067471,4.2489,2353.6,2353.2,4.24944]
[1727949067683,4.2486,2353.8,2353.2,4.24944]
[1727949067684,4.24853,2353.8,2353.3,4.24924]
[1727949067889,4.24875,2353.7,2353.2,4.24953]
[1727949068104,0.424875,2353.7,2353.4,4.24915]
[1727949068402,4.24839,2353.9,2353.4,4.24906]
[1727949068604,4.24815,2354.0,2353.5,4.24888]
[1727949068788,4.24827,2353.9,2353.5,4.24888]
[1727949069012,4.24815,2354.0,2353.6,4.24871]
[1727949069184,4.24815,2354.0,2353.5,4.24888]
[1727949069514,5.50365519,2354.0,2353.5,4.24888]
[1727949069724,1.25550519,2354.0,2353.5,0.04512968]
[1727949069865,4.05907194,2354.6,2353.4,3.0]
[1727949070065,4.05907194,2354.6,2353.9,4.24824]
[1727949070066,4.24755,2354.3,2353.9,4.24824]
[1727949070281,4.24755,2354.3,2353.8,8.49662]
[1727949070482,5.44473001,2354.5,2353.5,4.24898]
[1727949070483,4.24821,2354.0,2353.5,4.24898]
[1727949070688,4.24818,2354.0,2353.5,4.24898]
[1727949071205,4.2483,2353.9,2353.5,4.24898]
[1727949071993,8.49665,2353.9,2353.5,4.24898]
[1727949072189,5.097965,2353.9,2353.3,4.24934]
[1727949072388,4.24863,2353.7,2353.3,4.24934]
[1727949072591,4.24863,2353.7,2353.3,8.4986]
[1727949072926,4.2486,2353.8,2353.4,4.24915]
[1727949073076,5.07936719,2353.8,2353.4,4.24915]
[1727949073478,5.07936719,2353.8,2353.5,4.24898]
[1727949073824,5.07936719,2353.8,2353.4,4.24915]
[1727949074375,0.83076719,2353.8,2353.3,4.2493]
[1727949074572,4.24858,2353.8,2353.4,4.24906]
[1727949077138,4.24858,2353.8,2353.5,4.24899]
[1727949077419,4.24825,2354.0,2353.4,4.24906]
[1727949077420,4.24769,2354.3,2353.8,4.24836]
[1727949077570,4.24776,2354.2,2353.6,4.24865]
[1727949077771,4.24814,2354.0,2353.4,7.24907]
[1727949077999,4.24814,2354.0,2353.5,4.24882]
[1727949078000,8.49637,2354.0,2353.5,4.24882]
[1727949078199,4.24814,2354.0,2353.5,4.24882]
[1727949078419,4.7155616,2353.9,2353.5,4.24882]
[1727949078619,0.4672916,2353.9,2353.6,4.2488]
[1727949079789,1.33978514,2354.2,2353.3,4.05907194]
[1727949079992,1.33978514,2354.3,2354.0,4.24792]
[1727949080201,1.33978514,2354.4,2354.1,4.24782]
[1727949080490,5.58712514,2354.5,2354.1,4.24782]
[1727949080692,1.33978514,2354.5,2354.3,4.24752]
[1727949080875,2.22552593,2354.7,2354.3,4.24739]
[1727949080876,1.33978514,2354.7,2354.3,4.24739]
[1727949081073,4.24664,2354.8,2354.3,8.49479]
[1727949081415,4.24664,2354.8,2354.2,4.2477]
[1727949081416,0.95928212,2354.7,2354.2,4.2477]
[1727949081614,5.20618212,2354.7,2354.3,4.24746]
[1727949081917,0.52059221,2354.6,2354.3,4.24751]
[1727949082123,1.33978514,2354.8,2354.4,4.24718]
[1727949082293,5.58627514,2354.9,2354.4,4.24718]
[1727949082477,1.16135353,2354.8,2354.5,4.24711]
[1727949084326,1.16135353,2354.8,2354.7,4.24682]
[1727949084476,1.76439514,2355.1,2354.8,4.24664]
[1727949084676,1.76439514,2355.1,2354.6,4.24687]
[1727949084875,4.24629,2355.0,2354.6,4.24687]
[1727949085114,0.891715,2354.9,2354.6,4.24687]
[1727949086775,0.42461,2355.1,2354.5,4.24702]
[1727949086980,5.58559514,2355.3,2354.8,4.24661]
[1727949087210,4.24593,2355.2,2354.8,4.24661]
[1727949087428,4.24593,2355.2,2354.7,4.2467]
[1727949087429,0.849174,2355.1,2354.7,4.2467]
[1727949088170,0.849174,2355.1,2354.8,4.2466]
[1727949088375,4.24581,2355.3,2354.8,4.2466]
[1727949088532,4.24603,2355.2,2354.8,4.2466]
[1727949089471,4.24603,2355.2,2354.6,4.24699]
[1727949089472,4.24603,2355.2,2354.7,4.24679]
[1727949089882,1.33978514,2355.6,2355.0,4.24616]
[1727949090059,5.56974833,2355.6,2355.0,4.24616]
[1727949090262,5.56974833,2355.6,2355.2,4.24592]
[1727949090937,1.32444833,2355.6,2355.1,0.03532158]
[1727949091139,4.24503,2355.7,2355.1,4.24598]
[1727949091356,4.24528,2355.6,2355.1,4.24598]
[1727949091587,1.33978514,2355.9,2355.0,4.24626]
[1727949091588,4.24559,2355.4,2355.0,4.24626]
[1727949091792,0.849098,2355.3,2355.0,4.24626]
[1727949092282,0.849098,2355.3,2354.9,4.24636]
[1727949092455,0.849098,2355.3,2354.8,4.24653]
[1727949092456,5.094868,2355.3,2354.8,4.24653]
[1727949092642,5.1799958,2355.2,2354.7,7.24679]
[1727949092979,5.1799958,2355.2,2354.7,4.24679]
[1727949092980,4.24609,2355.2,2354.7,4.24679]
[1727949093188,4.24611,2355.1,2354.7,4.24679]
[1727949095015,1.33978514,2355.6,2354.7,3.0]
[1727949095142,1.33978514,2355.7,2355.3,4.24573]
[1727949095341,4.24491,2355.8,2355.4,4.24548]
[1727949095580,0.82422458,2355.7,2355.4,4.24548]
[1727949096090,0.82422458,2355.7,2355.3,4.24563]
[1727949096294,4.24539,2355.5,2355.0,3.0]
[1727949096446,4.24539,2355.5,2355.1,4.24608]
[1727949096781,4.24558,2355.4,2355.0,7.24627]
[1727949096992,4.24558,2355.4,2355.1,4.24609]
[1727949096993,0.849097,2355.4,2355.1,4.24609]
[1727949097191,4.24539,2355.5,2355.1,4.24609]
[1727949099345,4.24478,2355.9,2355.2,4.33071455]
[1727949099547,4.24492,2355.8,2355.3,4.24567]
[1727949099815,4.24509,2355.7,2355.3,4.24567]
[1727949100254,4.24509,2355.7,2355.2,4.2458]
[1727949100667,4.24509,2355.7,2355.3,4.24572]
[1727949100861,4.24536,2355.6,2355.1,4.24606]
[1727949101184,4.24538,2355.5,2355.1,4.24606]
[1727949101797,4.24509,2355.7,2355.2,4.24577]
[1727949101970,8.49029,2355.7,2355.2,4.24577]
[1727949102168,5.16656107,2355.6,2355.2,4.24577]
[1727949103244,4.2452,2355.6,2355.2,4.24577]
[1727949106969,4.24538,2355.5,2354.9,4.24638]
[1727949107171,4.24565,2355.4,2355.0,4.24619]
[1727949108566,4.24565,2355.4,2355.0,8.49232]
[1727949108933,4.24565,2355.4,2355.1,4.2461]
[1727949109159,4.24541,2355.5,2355.1,4.2461]
[1727949109363,4.24541,2355.5,2354.9,4.24637]
[1727949109364,4.72431945,2355.5,2354.9,4.24637]
[1727949109564,4.24559,2355.4,2355.0,4.24625]
[1727949109872,0.47890945,2355.5,2355.1,4.24608]
[1727949110035,4.72432945,2355.5,2355.1,4.24608]
[1727949110953,8.96985945,2355.5,2355.1,4.24608]
[1727949111161,4.72432945,2355.5,2355.1,4.24608]
[1727949111760,4.72432945,2355.5,2355.0,4.24627]
[1727949111761,4.71800295,2355.4,2355.0,4.24627]
[1727949115350,0.47890945,2355.5,2355.1,4.24601]
[1727949115545,4.24524,2355.6,2355.1,4.24601]
[1727949115747,4.24545,2355.5,2355.1,4.24601]
[1727949116428,4.24545,2355.5,2355.1,8.49195]
[1727949117330,4.24545,2355.5,2355.1,4.24594]
[1727949117565,5.14888645,2355.5,2355.2,4.2459]
[1727949117768,5.14888645,2355.5,2354.7,7.24681]
[1727949118092,5.14888645,2355.5,2355.0,8.49222]
[1727949118290,5.14888645,2355.5,2355.0,4.24611]
[1727949118440,5.14888645,2355.5,2355.1,4.24609]
[1727949118785,0.93940865,2355.4,2355.1,4.24609]
[1727949121577,4.24545,2355.5,2355.2,4.24592]
[1727949121737,4.24545,2355.5,2355.1,4.24601]
[1727949121943,4.24524,2355.6,2355.2,4.24591]
[1727949122345,8.49061,2355.6,2355.2,4.24591]
[1727949122545,1.03742896,2355.5,2355.2,4.24591]
[1727949122975,4.24602,2355.2,2354.8,4.24659]
[1727949123286,2.3772141,2355.5,2355.2,4.24583]
[1727949123488,5.58505514,2355.6,2355.2,4.24583]
[1727949123944,4.24539,2355.5,2355.2,4.24583]
[1727949124144,4.24539,2355.5,2355.1,4.24601]
[1727949124344,4.24562,2355.4,2355.0,4.24623]
[1727949124658,5.22866451,2355.4,2355.0,4.24623]
[1727949125181,0.98304451,2355.4,2355.1,4.2461]
[1727949125439,2.32282965,2355.4,2355.1,4.2461]
[1727949125585,2.32282965,2355.4,2355.0,4.24623]
[1727949125586,6.56847965,2355.4,2355.0,4.24623]
[1727949125780,6.56847965,2355.4,2355.0,4.24617]
[1727949126189,5.58554514,2355.3,2355.0,4.24617]
[1727949127084,1.33978514,2355.2,2355.0,4.24617]
[1727949127494,1.33978514,2355.2,2354.9,4.24646]
[1727949127786,1.33978514,2355.2,2355.0,4.24621]
[1727949129959,1.33978514,2355.2,2354.9,4.24646]
[1727949130188,1.33978514,2355.1,2354.9,4.24646]
[1727949130501,1.33978514,2355.1,2355.0,4.24628]
[1727949130807,1.33978514,2355.2,2355.0,4.24628]
[1727949132159,1.33978514,2355.2,2354.9,4.24639]
[1727949133271,1.33978514,2355.2,2355.0,4.24623]
[1727949133479,1.33978514,2355.2,2354.8,4.24651]
[1727949133678,1.33978514,2355.1,2354.8,8.49306]
[1727949134002,1.33978514,2355.1,2354.5,4.24717]
[1727949134003,5.58625514,2354.9,2354.5,4.24705]
[1727949134302,5.58548491,2354.7,2354.3,4.24753]
[1727949134607,5.58548491,2354.7,2354.0,4.24804]
[1727949134608,4.2472,2354.5,2354.0,4.24804]
[1727949134825,1.33866491,2354.3,2353.7,4.24846]
[1727949135104,1.33866491,2354.2,2353.7,4.2485]
[1727949135309,3.11953504,2354.2,2353.9,4.24819]
[1727949135466,5.58623491,2354.3,2353.9,4.24819]
[1727949135661,6.36391872,2354.3,2353.9,4.24819]
[1727949136070,5.58650491,2354.2,2353.7,4.24851]
[1727949136403,10.61157872,2354.3,2353.8,4.24831]
[1727949136702,6.36391872,2354.3,2353.8,4.24831]
[1727949136903,10.61157872,2354.3,2353.8,4.24831]
[1727949137115,10.61156872,2354.3,2353.8,4.24831]
[1727949137291,6.36391872,2354.3,2353.8,4.24831]
[1727949137602,4.24773,2354.2,2353.8,4.24831]
[1727949138196,6.36391872,2354.3,2353.9,4.24826]
[1727949138363,5.02525381,2354.3,2353.8,4.24831]
[1727949138561,4.88421187,2354.2,2353.6,4.24869]
[1727949138785,4.248,2354.1,2353.6,8.49739]
[1727949139489,4.248,2354.1,2353.7,4.24858]
[1727949139814,4.88421187,2354.2,2353.8,4.24842]
[1727949142479,1.33866491,2354.5,2353.7,4.05805994]
[1727949142681,4.24737,2354.4,2354.0,4.24794]
[1727949142992,5.7543983,2354.4,2354.0,4.24794]
[1727949145483,5.7543983,2354.4,2353.8,4.24842]
[1727949145689,4.24737,2354.4,2353.9,4.24819]
[1727949146130,4.24726,2354.5,2354.0,4.2832106]
[1727949146298,4.24694,2354.7,2354.2,4.24771]
[1727949146625,7.91430791,2354.8,2354.3,4.2826761]
[1727949146626,4.24671,2354.8,2354.3,4.2826761]
[1727949146831,4.24671,2354.8,2354.3,4.24738]
[1727949147357,4.24671,2354.8,2354.4,4.2473]
[1727949147685,4.24656,2354.9,2354.4,4.2473]
[1727949147686,4.24649,2354.9,2354.5,4.24718]
[1727949148201,4.24667,2354.8,2354.4,4.24735]
[1727949148524,4.24667,2354.8,2354.4,8.49464]
[1727949148737,4.2467,2354.8,2354.4,4.24729]
[1727949148886,4.24631,2355.0,2354.5,4.24705]
[1727949149088,4.24631,2355.0,2354.6,4.24699]
[1727949149397,4.24631,2355.0,2354.5,5.16259739]
[1727949149601,5.58467491,2355.2,2354.5,0.91545739]
[1727949149803,4.24612,2355.1,2354.7,4.2467]
[1727949150697,4.24612,2355.1,2354.6,4.24684]
[1727949151232,4.2464,2355.0,2354.6,4.24684]
[1727949151398,1.64064379,2355.1,2354.4,4.24721]
[1727949151605,4.24686,2354.7,2354.3,4.24753]
[1727949151805,4.24686,2354.7,2354.3,7.24753]
[1727949152005,0.72253787,2355.0,2354.5,4.24708]
[1727949152006,4.24648,2354.9,2354.5,4.24708]
[1727949152406,4.24633,2355.0,2354.5,4.24708]
[1727949152407,4.24633,2355.0,2354.6,4.24698]
[1727949153126,8.49273,2355.0,2354.6,4.24698]
[1727949153523,4.24633,2355.0,2354.6,4.24698]
[1727949154096,5.58474491,2355.2,2354.6,4.24698]
[1727949154097,5.58474491,2355.2,2354.6,4.24689]
[1727949154421,1.33866491,2355.3,2354.9,4.24634]
[1727949154622,7.91430791,2355.5,2355.0,4.24618]
[1727949154794,5.58395491,2355.6,2355.1,4.24606]
[1727949155196,4.24538,2355.5,2355.1,4.24606]
[1727949155469,4.24538,2355.5,2355.0,4.24618]
[1727949155470,4.24559,2355.4,2355.0,4.24618]
[1727949155620,4.24538,2355.5,2354.9,0.0849177]
[1727949155824,4.24557,2355.4,2355.0,4.24626]
[1727949156253,4.24574,2355.3,2354.9,4.24644]
[1727949156750,1.33866491,2355.6,2355.0,4.24625]
[1727949156751,4.24556,2355.4,2355.0,4.24625]
[1727949156957,5.22851249,2355.4,2354.9,4.24644]
[1727949157244,4.24593,2355.2,2354.8,4.2466]
[1727949157609,4.24577,2355.3,2354.9,4.24646]